[Event "European Online Club-ch-A 2021"]
[Site "Online"]
[Date "2021.03.27"]
[Round "9.15"]
[White "Emir, Doruk"]
[Black "Timofeev, Artyom"]
[Result "0-1"]
[ECO "A05"]
[WhiteElo "1852"]
[BlackElo "2594"]
[Annotator "ChessBase"]
[PlyCount "82"]
[EventDate "2021.03.27"]
[EventType "team-tourn"]
[EventCountry "NET"]
[SourceTitle "playchess.com"]
[Source "ChessBase"]
[SourceQuality "1"]
[TimeControl "900+5"]

1. Nf3 {[%emt 0:00:00]} Nf6 {[%emt 0:00:05]} 2. g3 {[%emt 0:00:53]} g6 {[%emt 0:00:10]} 3. Bg2 {[%emt 0:00:02]} Bg7 {[%emt 0:00:02]} 4. O-O {[%emt 0:00:02]} O-O {[%emt 0:00:02]} 5. d3 {[%emt 0:00:02]} c5 {[%emt 0:00:04]} 6. e4 {[%emt 0:00:06]} Nc6 {[%emt 0:00:03]} 7. Nfd2 {[%emt 0:00:34]} Rb8 {[%emt 0:00:23]} 8. a4 {[%emt 0:00:08]} b6 {[%emt 0:00:10]} 9. Nc3 {[%emt 0:00:18]} Bb7 {[%emt 0:00:02]} 10. f4 {[%emt 0:00:07]} d6 {[%emt 0:00:05]} 11. Nc4 {[%emt 0:00:10]} Qd7 {[%emt 0:00:19]} 12. f5 {[%emt 0:00:12]} Ne5 {[%emt 0:00:38]} 13. Nxe5 {[%emt 0:02:02]} dxe5 {[%emt 0:00:03]} 14. g4 {[%emt 0:00:09]} Rbd8 {[%emt 0:00:16]} 15. Qf3 {[%emt 0:00:30]} c4 {[%emt 0:00:11]} 16. dxc4 {[%emt 0:00:11]} Qd4+ {[%emt 0:00:02]} 17. Be3 {[%emt 0:00:06]} Qxc4 {[%emt 0:00:02]} 18. h4 {[%emt 0:01:52]} Qb4 {[%emt 0:00:45]} 19. Rab1 {[%emt 0:00:34]} Rc8 {[%emt 0:00:57]} 20. g5 {[%emt 0:01:52]} Nh5 {[%emt 0:00:04]} 21. Bd2 {[%emt 0:01:05]} Nf4 {[%emt 0:00:59]} 22. Rfd1 {[%emt 0:00:28]} Qc4 {[%emt 0:00:34]} 23. Bf1 {[%emt 0:00:14]} Qc7 {[%emt 0:00:02]} 24. fxg6 {[%emt 0:00:53]} hxg6 {[%emt 0:00:20]} 25. Rbc1 {[%emt 0:00:29]} a6 {[%emt 0:00:23]} 26. Bxf4 {[%emt 0:00:31]} exf4 {[%emt 0:00:02]} 27. Rd3 {[%emt 0:00:16]} b5 {[%emt 0:00:11]} 28. Bh3 {[%emt 0:00:33]} Rcd8 {[%emt 0:00:08]} 29. Rcd1 {[%emt 0:00:07]} bxa4 {[%emt 0:00:06]} 30. h5 {[%emt 0:00:08]} Rxd3 {[%emt 0:00:10]} 31. cxd3 {[%emt 0:00:08]} a3 {[%emt 0:00:50]} 32. hxg6 {[%emt 0:00:06]} axb2 {[%emt 0:00:04]} 33. Qh5 {[%emt 0:00:02]} Rd8 {[%emt 0:00:11]} 34. gxf7+ {[%emt 0:00:31]} Kf8 {[%emt 0:00:03]} 35. Qh7 {[%emt 0:00:01]} Qb6+ {[%emt 0:00:39]} 36. Kh1 {[%emt 0:00:29]} Kxf7 {[%emt 0:00:02]} 37. Bg4 {[%emt 0:00:51]} Rh8 {[%emt 0:01:29]} 38. Bh5+ {[%emt 0:00:04]} Kf8 {[%emt 0:00:01]} 39. Qf5+ {[%emt 0:00:10]} Bf6 {[%emt 0:00:02]} 40. gxf6 {[%emt 0:00:38]} Qxf6 {[%emt 0:00:02]} 41. Qg4 {[%emt 0:00:35]} Qe5 {[%emt 0:00:14]} 0-1

[Event "European Online Club-ch-A 2021"]
[Site "Online"]
[Date "2021.03.27"]
[Round "9.16"]
[White "Sharafiev, Azat"]
[Black "Tinmaz, Kerem"]
[Result "1-0"]
[ECO "D16"]
[WhiteElo "2432"]
[BlackElo "1614"]
[Annotator "NA"]
[PlyCount "75"]
[EventDate "2021.03.27"]
[EventType "team-tourn"]
[EventCountry "NET"]
[SourceTitle "playchess.com"]
[Source "ChessBase"]
[SourceQuality "1"]
[TimeControl "900+5"]

1. d4 {[%emt 0:00:00]} d5 {[%emt 0:00:03]} 2. Nf3 {[%emt 0:00:05]} Nf6 {[%emt 0:00:02]} 3. c4 {[%emt 0:00:04]} c6 {[%emt 0:00:02]} 4. Nc3 {[%emt 0:00:02]} dxc4 {[%emt 0:00:01]} 5. a4 {[%emt 0:00:03]} a5 {[%emt 0:00:04]} 6. e4 {[%emt 0:00:20]} Bg4 {[%emt 0:00:03]} 7. Bxc4 {[%emt 0:00:08]} e6 {[%emt 0:00:03]} 8. Be3 {[%emt 0:00:10]} Bb4 {[%emt 0:00:03]} 9. h3 {[%emt 0:00:13]} Bh5 {[%emt 0:01:05]} 10. Bd3 {[%emt 0:00:10]} Nbd7 {[%emt 0:00:50]} 11. O-O {[%emt 0:00:10]} h6 {[%emt 0:00:35]} 12. Ne2 {[%emt 0:02:05]} Bxf3 {[%emt 0:00:29]} 13. gxf3 {[%emt 0:00:03]} Nh5 {[%emt 0:01:37]} 14. Ng3 {[%emt 0:00:27]} Qh4 {[%emt 0:00:31]} 15. Nxh5 {[%emt 0:00:03]} Qxh5 {[%emt 0:00:10]} 16. Kh2 {[%emt 0:00:02]} Nf6 {[%emt 0:01:33]} 17. f4 {[%emt 0:00:11]} Qh4 {[%emt 0:02:24]} 18. Qf3 {[%emt 0:00:33]} g5 {[%emt 0:01:13]} 19. Qg3 {[%emt 0:01:25]} Qh5 {[%emt 0:00:46]} 20. f5 {[%emt 0:00:44]} exf5 {[%emt 0:01:18]} 21. Qe5+ {[%emt 0:00:22]} Be7 {[%emt 0:00:09]} 22. Qxf5 {[%emt 0:00:02]} Qh4 {[%emt 0:00:44]} 23. f3 {[%emt 0:01:10]} Rg8 {[%emt 0:00:32]} 24. Bf2 {[%emt 0:00:16]} Qf4+ {[%emt 0:00:42]} 25. Qxf4 {[%emt 0:00:06]} gxf4 {[%emt 0:00:01]} 26. Rg1 {[%emt 0:01:03]} O-O-O {[%emt 0:00:05]} 27. Bc4 {[%emt 0:00:02]} Rdf8 {[%emt 0:00:35]} 28. Rxg8 {[%emt 0:00:12]} Nxg8 {[%emt 0:00:16]} 29. Rg1 {[%emt 0:00:06]} Nf6 {[%emt 0:00:25]} 30. Rg7 {[%emt 0:00:09]} Kd7 {[%emt 0:00:24]} 31. Bxf7 {[%emt 0:00:15]} b5 {[%emt 0:00:27]} 32. axb5 {[%emt 0:00:38]} cxb5 {[%emt 0:00:02]} 33. e5 {[%emt 0:00:03]} Ne8 {[%emt 0:00:15]} 34. Bxe8+ {[%emt 0:00:04]} Kxe8 {[%emt 0:00:13]} 35. d5 {[%emt 0:00:04]} Rf5 {[%emt 0:00:05]} 36. d6 {[%emt 0:00:24]} Bf8 {[%emt 0:00:06]} 37. d7+ {[%emt 0:00:05]} Kd8 {[%emt 0:00:06]} 38. Bb6# {[%emt 0:00:01]} 1-0

[Event "European Online Club-ch-A 2021"]
[Site "Online"]
[Date "2021.03.27"]
[Round "9.18"]
[White "Bacrot, Etienne"]
[Black "Nemec, Jachym"]
[Result "1-0"]
[ECO "C00"]
[WhiteElo "2678"]
[BlackElo "2229"]
[Annotator "ChessBase"]
[PlyCount "59"]
[EventDate "2021.03.27"]
[EventType "team-tourn"]
[EventCountry "NET"]
[SourceTitle "playchess.com"]
[Source "ChessBase"]
[SourceQuality "1"]
[TimeControl "900+5"]

1. e4 {[%emt 0:00:00]} c5 {[%emt 0:00:02]} 2. Nf3 {[%emt 0:00:03]} Nc6 {[%emt 0:00:02]} 3. g3 {[%emt 0:00:02]} Nf6 {[%emt 0:00:15]} 4. d3 {[%emt 0:00:02]} e6 {[%emt 0:00:12]} 5. Bg2 {[%emt 0:00:03]} d5 {[%emt 0:00:01]} 6. Nbd2 {[%emt 0:00:02]} Be7 {[%emt 0:00:02]} 7. O-O {[%emt 0:00:01]} b5 {[%emt 0:00:11]} 8. Re1 {[%emt 0:00:08]} a5 {[%emt 0:00:05]} 9. e5 {[%emt 0:00:03]} Nd7 {[%emt 0:00:02]} 10. Nf1 {[%emt 0:00:01]} Ba6 {[%emt 0:00:02]} 11. h4 {[%emt 0:00:02]} b4 {[%emt 0:00:02]} 12. N1h2 {[%emt 0:00:03]} Qc7 {[%emt 0:00:02]} 13. Bf4 {[%emt 0:00:39]} h6 {[%emt 0:00:12]} 14. Ng4 {[%emt 0:00:05]} O-O-O {[%emt 0:00:07]} 15. a3 {[%emt 0:00:03]} Kb7 {[%emt 0:00:07]} 16. axb4 {[%emt 0:00:08]} axb4 {[%emt 0:00:06]} 17. c3 {[%emt 0:00:07]} Ra8 {[%emt 0:00:06]} 18. Qc2 {[%emt 0:00:21]} Nb6 {[%emt 0:00:26]} 19. h5 {[%emt 0:00:10]} c4 {[%emt 0:00:09]} 20. dxc4 {[%emt 0:00:03]} Nxc4 {[%emt 0:00:05]} 21. Ne3 {[%emt 0:00:08]} Bb5 {[%emt 0:00:08]} 22. Nxc4 {[%emt 0:00:04]} Bxc4 {[%emt 0:00:02]} 23. Nd2 {[%emt 0:00:02]} Na5 {[%emt 0:01:17]} 24. b3 {[%emt 0:00:46]} Bb5 {[%emt 0:00:41]} 25. c4 {[%emt 0:00:04]} Rhd8 {[%emt 0:01:42]} 26. Rec1 {[%emt 0:00:25]} Bc6 {[%emt 0:00:43]} 27. cxd5 {[%emt 0:00:03]} exd5 {[%emt 0:00:03]} 28. e6 {[%emt 0:00:05]} Bd6 {[%emt 0:00:04]} 29. e7 {[%emt 0:00:07]} Rd7 {[%emt 0:00:33]} 30. Rxa5 {[%emt 0:00:14]} 1-0

[Event "European Online Club-ch-A 2021"]
[Site "Online"]
[Date "2021.03.27"]
[Round "9.20"]
[White "Naiditsch, Arkadij"]
[Black "Smolik, Jachym"]
[Result "1-0"]
[ECO "B14"]
[WhiteElo "2649"]
[BlackElo "2073"]
[Annotator "ChessBase"]
[PlyCount "63"]
[EventDate "2021.03.27"]
[EventType "team-tourn"]
[EventCountry "NET"]
[SourceTitle "playchess.com"]
[Source "ChessBase"]
[SourceQuality "1"]
[TimeControl "900+5"]

1. e4 {[%emt 0:00:00]} c6 {[%emt 0:00:02]} 2. d4 {[%emt 0:00:02]} d5 {[%emt 0:00:02]} 3. exd5 {[%emt 0:00:01]} cxd5 {[%emt 0:00:01]} 4. c4 {[%emt 0:00:00]} Nf6 {[%emt 0:00:03]} 5. Nc3 {[%emt 0:00:02]} g6 {[%emt 0:00:01]} 6. Qb3 {[%emt 0:00:03]} Bg7 {[%emt 0:00:05]} 7. cxd5 {[%emt 0:00:02]} O-O {[%emt 0:00:02]} 8. Nge2 {[%emt 0:00:01]} Nbd7 {[%emt 0:00:03]} 9. g3 {[%emt 0:00:02]} Nb6 {[%emt 0:00:04]} 10. Bg2 {[%emt 0:00:03]} Bg4 {[%emt 0:00:28]} 11. Nf4 {[%emt 0:00:06]} Rc8 {[%emt 0:01:15]} 12. O-O {[%emt 0:00:02]} Ne8 {[%emt 0:00:31]} 13. Re1 {[%emt 0:00:04]} Nd6 {[%emt 0:00:05]} 14. Be3 {[%emt 0:00:06]} Nbc4 {[%emt 0:00:55]} 15. Rac1 {[%emt 0:00:06]} a6 {[%emt 0:00:23]} 16. a3 {[%emt 0:00:03]} Qb6 {[%emt 0:00:25]} 17. Qxb6 {[%emt 0:00:04]} Nxb6 {[%emt 0:00:02]} 18. h3 {[%emt 0:00:03]} Bf5 {[%emt 0:00:12]} 19. g4 {[%emt 0:00:02]} Bd7 {[%emt 0:00:03]} 20. Nd3 {[%emt 0:00:05]} Nbc4 {[%emt 0:00:22]} 21. Bg5 {[%emt 0:00:03]} f6 {[%emt 0:00:43]} 22. Bf4 {[%emt 0:00:04]} Kf7 {[%emt 0:00:13]} 23. Nc5 {[%emt 0:00:02]} Rfd8 {[%emt 0:00:49]} 24. Re2 {[%emt 0:00:02]} Bb5 {[%emt 0:00:46]} 25. Rce1 {[%emt 0:00:04]} Bf8 {[%emt 0:00:20]} 26. a4 {[%emt 0:00:02]} Bd7 {[%emt 0:01:11]} 27. b3 {[%emt 0:00:02]} Na5 {[%emt 0:01:37]} 28. N3e4 {[%emt 0:00:01]} b6 {[%emt 0:00:20]} 29. Ne6 {[%emt 0:00:06]} Bxe6 {[%emt 0:00:26]} 30. dxe6+ {[%emt 0:00:00]} Kxe6 {[%emt 0:00:53]} 31. Nxd6+ {[%emt 0:00:02]} Kd7 {[%emt 0:00:01]} 32. Nxc8 {[%emt 0:00:01]} 1-0